[Event "Titled Tuesday Blitz March 14 Early 2023"]
[White "Kozin, Yuri"]
[Black "Manon-og, Ramon Jr."]
[WhiteFideId "4129920"]
[BlackFideId "5200776"]
[WhiteElo "2526"]
[BlackElo "2334"]
[Result "0-1"]
[Round "04"]
[TimeControl "180+2"]
[Date "2023.03.14"]
[WhiteClock "0:00:04"]
[BlackClock "0:00:37"]

1. e4 {[%clk 0:03:00]}  c5 {[%clk 0:03:00]} 2. Nf3 {[%clk 0:03:00]}  d6 {[%clk 0:03:00]} 3. d4 {[%clk 0:03:01]}  cxd4 {[%clk 0:03:00]} 4. Nxd4 {[%clk 0:03:02]}  Nf6 {[%clk 0:03:00]} 5. Nc3 {[%clk 0:03:02]}  a6 {[%clk 0:03:01]} 6. Be3 {[%clk 0:03:03]}  e5 {[%clk 0:03:01]} 7. Nf3 {[%clk 0:03:04]}  Be7 {[%clk 0:03:01]} 8. Bc4 {[%clk 0:03:04]}  Bg4 {[%clk 0:03:02]} 9. Nd5 {[%clk 0:02:53]}  O-O {[%clk 0:02:48]} 10. Bb6 {[%clk 0:02:43]}  Qd7 {[%clk 0:02:40]} 11. Nc7 {[%clk 0:02:43]}  Qc6 {[%clk 0:02:30]} 12. Nxa8 {[%clk 0:02:35]}  Qxc4 {[%clk 0:02:30]} 13. Be3 {[%clk 0:02:25]}  Nbd7 {[%clk 0:02:27]} 14. Nd2 {[%clk 0:01:27]}  Qc6 {[%clk 0:01:52]} 15. f3 {[%clk 0:01:26]}  Bh5 {[%clk 0:01:52]} 16. g4 {[%clk 0:01:20]}  Bg6 {[%clk 0:01:53]} 17. h4 {[%clk 0:01:19]}  h5 {[%clk 0:01:51]} 18. g5 {[%clk 0:01:09]}  Nh7 {[%clk 0:01:51]} 19. Nb3 {[%clk 0:00:55]}  Rxa8 {[%clk 0:01:48]} 20. Qd2 {[%clk 0:00:54]}  Nc5 {[%clk 0:01:41]} 21. Bxc5 {[%clk 0:00:46]}  dxc5 {[%clk 0:01:42]} 22. Na5 {[%clk 0:00:43]}  Qc7 {[%clk 0:01:34]} 23. Nc4 {[%clk 0:00:35]}  Rd8 {[%clk 0:01:31]} 24. Qe2 {[%clk 0:00:32]}  Nf8 {[%clk 0:01:25]} 25. Ne3 {[%clk 0:00:30]}  Rd7 {[%clk 0:01:05]} 26. Nd5 {[%clk 0:00:30]}  Qa5+ {[%clk 0:01:02]} 27. Kf2 {[%clk 0:00:26]}  Ne6 {[%clk 0:01:02]} 28. Rhd1 {[%clk 0:00:18]}  Qd8 {[%clk 0:00:48]} 29. Kg1 {[%clk 0:00:15]}  Bf8 {[%clk 0:00:41]} 30. c3 {[%clk 0:00:15]}  Nf4 {[%clk 0:00:41]} 31. Qe3 {[%clk 0:00:13]}  Nxd5 {[%clk 0:00:40]} 32. exd5 {[%clk 0:00:12]}  Rxd5 {[%clk 0:00:41]} 33. Rxd5 {[%clk 0:00:11]}  Qxd5 {[%clk 0:00:42]} 34. Qe2 {[%clk 0:00:11]}  c4 {[%clk 0:00:38]} 35. Rd1 {[%clk 0:00:12]}  Bd3 {[%clk 0:00:38]} 36. Qe1 {[%clk 0:00:04]}  Qxf3 {[%clk 0:00:37]} 37. Rd2 {[%clk 0:00:04]}  Bc5+ {[%clk 0:00:37]} 0-1


[Site "https://www.chess.com"]

[Event "Titled Tuesday Blitz March 14 Early 2023"]
[White "Buscar, Michael"]
[Black "Turzo, Attila"]
[WhiteFideId "2603616"]
[BlackFideId "704954"]
[WhiteElo "2010"]
[BlackElo "2525"]
[Result "1-0"]
[Round "04"]
[TimeControl "180+2"]
[Date "2023.03.14"]
[WhiteClock "0:00:09"]
[BlackClock "0:00:02"]

1. d4 {[%clk 0:02:50]}  Nf6 {[%clk 0:02:59]} 2. c4 {[%clk 0:02:49]}  c5 {[%clk 0:02:59]} 3. d5 {[%clk 0:02:49]}  b5 {[%clk 0:03:00]} 4. cxb5 {[%clk 0:02:48]}  a6 {[%clk 0:03:00]} 5. bxa6 {[%clk 0:02:48]}  g6 {[%clk 0:02:58]} 6. g3 {[%clk 0:02:45]}  Bg7 {[%clk 0:02:54]} 7. Bg2 {[%clk 0:02:46]}  d6 {[%clk 0:02:53]} 8. Nf3 {[%clk 0:02:45]}  O-O {[%clk 0:02:53]} 9. Nfd2 {[%clk 0:02:45]}  Nxa6 {[%clk 0:02:48]} 10. Nc4 {[%clk 0:02:44]}  Nd7 {[%clk 0:02:44]} 11. O-O {[%clk 0:02:41]}  Nb4 {[%clk 0:02:37]} 12. a3 {[%clk 0:02:00]}  Nb6 {[%clk 0:02:26]} 13. Nbd2 {[%clk 0:01:31]}  Bf5 {[%clk 0:01:47]} 14. Nxb6 {[%clk 0:01:13]}  Bc2 {[%clk 0:01:27]} 15. Nxa8 {[%clk 0:00:51]}  Bxd1 {[%clk 0:01:24]} 16. axb4 {[%clk 0:00:50]}  Bxe2 {[%clk 0:01:18]} 17. Re1 {[%clk 0:00:49]}  Bd3 {[%clk 0:00:59]} 18. bxc5 {[%clk 0:00:49]}  dxc5 {[%clk 0:00:55]} 19. Ra7 {[%clk 0:00:44]}  Bf6 {[%clk 0:00:45]} 20. Ne4 {[%clk 0:00:38]}  Bxe4 {[%clk 0:00:39]} 21. Bxe4 {[%clk 0:00:34]}  Kg7 {[%clk 0:00:39]} 22. Be3 {[%clk 0:00:23]}  Qd6 {[%clk 0:00:33]} 23. Rc1 {[%clk 0:00:17]}  Qe5 {[%clk 0:00:32]} 24. Bf3 {[%clk 0:00:15]}  Qxb2 {[%clk 0:00:27]} 25. Rxc5 {[%clk 0:00:11]}  Qb1+ {[%clk 0:00:12]} 26. Rc1 {[%clk 0:00:10]}  Qb8 {[%clk 0:00:11]} 27. Nc7 {[%clk 0:00:08]}  Qb2 {[%clk 0:00:10]} 28. Kg2 {[%clk 0:00:06]}  Rc8 {[%clk 0:00:09]} 29. Rc6 {[%clk 0:00:03]}  Rd8 {[%clk 0:00:08]} 30. Na6 {[%clk 0:00:03]}  Qe5 {[%clk 0:00:06]} 31. Nb4 {[%clk 0:00:02]}  Qb2 {[%clk 0:00:06]} 32. Rb7 {[%clk 0:00:02]}  h5 {[%clk 0:00:06]} 33. Rcb6 {[%clk 0:00:01]}  h4 {[%clk 0:00:05]} 34. Nc6 {[%clk 0:00:01]}  Qxb6 {[%clk 0:00:02]} 35. Nxd8 {[%clk 0:00:02]}  Qxd8 {[%clk 0:00:01]} 36. Ra7 {[%clk 0:00:02]}  Qc8 {[%clk 0:00:01]} 37. gxh4 {[%clk 0:00:02]}  Qf5 {[%clk 0:00:01]} 38. Ra4 {[%clk 0:00:03]}  Qd3 {[%clk 0:00:02]} 39. Rg4 {[%clk 0:00:03]}  Qc2 {[%clk 0:00:02]} 40. Rf4 {[%clk 0:00:04]}  Qc3 {[%clk 0:00:02]} 41. Rg4 {[%clk 0:00:04]}  Qc8 {[%clk 0:00:03]} 42. h5 {[%clk 0:00:05]}  Be5 {[%clk 0:00:03]} 43. hxg6 {[%clk 0:00:05]}  fxg6 {[%clk 0:00:04]} 44. Be4 {[%clk 0:00:06]}  g5 {[%clk 0:00:03]} 45. Rxg5+ {[%clk 0:00:06]}  Kf6 {[%clk 0:00:04]} 46. Rf5+ {[%clk 0:00:06]}  Kg7 {[%clk 0:00:04]} 47. Rxe5 {[%clk 0:00:06]}  Qc7 {[%clk 0:00:04]} 48. Rg5+ {[%clk 0:00:06]}  Kf6 {[%clk 0:00:04]} 49. Rg3 {[%clk 0:00:07]}  Qe5 {[%clk 0:00:03]} 50. Bf3 {[%clk 0:00:08]}  Qb2 {[%clk 0:00:02]} 51. Rg4 {[%clk 0:00:08]}  Kf5 {[%clk 0:00:02]} 52. Rf4+ {[%clk 0:00:08]}  Ke5 {[%clk 0:00:01]} 53. Bd4+ {[%clk 0:00:08]}  Qxd4 {[%clk 0:00:01]} 54. Rxd4 {[%clk 0:00:09]}  Kxd4 {[%clk 0:00:02]} 55. h4 {[%clk 0:00:09]} 1-0


[Site "https://www.chess.com"]

[Event "Titled Tuesday Blitz March 14 Early 2023"]
[White "Sovetbekova, Nurai"]
[Black "Baghdasaryan, Vahe"]
[WhiteFideId "13801910"]
[BlackFideId "13303139"]
[WhiteElo "1857"]
[BlackElo "2216"]
[Result "0-1"]
[Round "04"]
[TimeControl "180+2"]
[Date "2023.03.14"]
[WhiteClock "0:00:02"]
[BlackClock "0:00:10"]

1. d4 {[%clk 0:03:00]}  d5 {[%clk 0:02:58]} 2. c4 {[%clk 0:02:57]}  e6 {[%clk 0:02:56]} 3. Nc3 {[%clk 0:02:55]}  Be7 {[%clk 0:02:56]} 4. Nf3 {[%clk 0:02:50]}  Nf6 {[%clk 0:02:55]} 5. cxd5 {[%clk 0:02:49]}  exd5 {[%clk 0:02:55]} 6. Bg5 {[%clk 0:02:49]}  O-O {[%clk 0:02:52]} 7. Qc2 {[%clk 0:02:47]}  c6 {[%clk 0:02:51]} 8. e3 {[%clk 0:02:47]}  Nbd7 {[%clk 0:02:48]} 9. Bd3 {[%clk 0:02:47]}  Re8 {[%clk 0:02:48]} 10. O-O {[%clk 0:02:45]}  Nf8 {[%clk 0:02:42]} 11. Rab1 {[%clk 0:02:36]}  a5 {[%clk 0:02:38]} 12. a3 {[%clk 0:02:34]}  Bg4 {[%clk 0:02:36]} 13. Ne5 {[%clk 0:02:32]}  Bh5 {[%clk 0:02:33]} 14. h3 {[%clk 0:02:22]}  Bg6 {[%clk 0:02:21]} 15. b4 {[%clk 0:02:19]}  axb4 {[%clk 0:02:07]} 16. axb4 {[%clk 0:02:17]}  Bxd3 {[%clk 0:02:08]} 17. Nxd3 {[%clk 0:02:12]}  Ne6 {[%clk 0:01:54]} 18. Bh4 {[%clk 0:02:10]}  b5 {[%clk 0:01:51]} 19. Ne2 {[%clk 0:01:57]}  Ne4 {[%clk 0:01:44]} 20. Bxe7 {[%clk 0:01:40]}  Qxe7 {[%clk 0:01:45]} 21. Nec1 {[%clk 0:01:31]}  N6g5 {[%clk 0:00:57]} 22. Nb3 {[%clk 0:01:22]}  Nxh3+ {[%clk 0:00:51]} 23. gxh3 {[%clk 0:01:21]}  Qh4 {[%clk 0:00:43]} 24. Kh2 {[%clk 0:00:23]}  Re6 {[%clk 0:00:32]} 25. Rg1 {[%clk 0:00:08]}  Nxf2 {[%clk 0:00:25]} 26. Qxf2 {[%clk 0:00:06]}  Qh6 {[%clk 0:00:23]} 27. Nf4 {[%clk 0:00:05]}  Rf6 {[%clk 0:00:22]} 28. Qg3 {[%clk 0:00:06]}  g6 {[%clk 0:00:20]} 29. Nc5 {[%clk 0:00:05]}  Re8 {[%clk 0:00:19]} 30. Nd7 {[%clk 0:00:05]}  Rf5 {[%clk 0:00:19]} 31. Ne5 {[%clk 0:00:04]}  f6 {[%clk 0:00:19]} 32. Nxc6 {[%clk 0:00:04]}  Rg5 {[%clk 0:00:20]} 33. Qf2 {[%clk 0:00:04]}  Rf5 {[%clk 0:00:17]} 34. Qf3 {[%clk 0:00:03]}  g5 {[%clk 0:00:15]} 35. Qg2 {[%clk 0:00:03]}  Kh8 {[%clk 0:00:15]} 36. Nxd5 {[%clk 0:00:02]}  g4 {[%clk 0:00:15]} 37. Nde7 {[%clk 0:00:03]}  Rf2 {[%clk 0:00:11]} 38. Qxf2 {[%clk 0:00:02]}  Qxh3# {[%clk 0:00:10]} 0-1


[Site "https://www.chess.com"]

[Event "Titled Tuesday Blitz March 14 Early 2023"]
[White "Wilson, Elvin"]
[Black "Degenbaev, Aziz"]
[WhiteFideId "2014874"]
[BlackFideId "13802640"]
[WhiteElo "2288"]
[BlackElo "2152"]
[Result "0-1"]
[Round "04"]
[TimeControl "180+2"]
[Date "2023.03.14"]
[WhiteClock "0:00:01"]
[BlackClock "0:00:05"]

1. c4 {[%clk 0:02:56]}  Nf6 {[%clk 0:02:59]} 2. g3 {[%clk 0:02:49]}  g6 {[%clk 0:02:59]} 3. Bg2 {[%clk 0:02:49]}  Bg7 {[%clk 0:02:59]} 4. Nc3 {[%clk 0:02:50]}  O-O {[%clk 0:02:56]} 5. e4 {[%clk 0:02:50]}  d6 {[%clk 0:02:53]} 6. Nge2 {[%clk 0:02:45]}  e5 {[%clk 0:02:52]} 7. d3 {[%clk 0:02:45]}  Ne8 {[%clk 0:02:38]} 8. O-O {[%clk 0:02:45]}  f5 {[%clk 0:02:39]} 9. exf5 {[%clk 0:02:44]}  gxf5 {[%clk 0:02:38]} 10. f4 {[%clk 0:02:44]}  Nc6 {[%clk 0:02:38]} 11. Be3 {[%clk 0:02:43]}  Nf6 {[%clk 0:02:32]} 12. Kh1 {[%clk 0:02:43]}  Ng4 {[%clk 0:02:30]} 13. Bg1 {[%clk 0:02:43]}  Rb8 {[%clk 0:02:15]} 14. Qd2 {[%clk 0:02:39]}  h5 {[%clk 0:02:06]} 15. h3 {[%clk 0:02:22]}  Nh6 {[%clk 0:02:04]} 16. fxe5 {[%clk 0:02:14]}  dxe5 {[%clk 0:01:57]} 17. Rad1 {[%clk 0:02:05]}  h4 {[%clk 0:01:57]} 18. gxh4 {[%clk 0:01:25]}  Qxh4 {[%clk 0:01:55]} 19. Qe1 {[%clk 0:01:25]}  Qh5 {[%clk 0:01:41]} 20. Ng3 {[%clk 0:01:17]}  Qg6 {[%clk 0:01:40]} 21. Nd5 {[%clk 0:01:12]}  f4 {[%clk 0:01:31]} 22. Ne4 {[%clk 0:01:06]}  f3 {[%clk 0:01:16]} 23. Rxf3 {[%clk 0:00:55]}  Rxf3 {[%clk 0:01:15]} 24. Bxf3 {[%clk 0:00:56]}  Bxh3 {[%clk 0:01:15]} 25. Qg3 {[%clk 0:00:56]}  Qxg3 {[%clk 0:01:10]} 26. Nxg3 {[%clk 0:00:55]}  Rf8 {[%clk 0:01:09]} 27. Bg2 {[%clk 0:00:46]}  Bxg2+ {[%clk 0:00:57]} 28. Kxg2 {[%clk 0:00:45]}  Rf7 {[%clk 0:00:55]} 29. Rf1 {[%clk 0:00:40]}  Rd7 {[%clk 0:00:49]} 30. Nh5 {[%clk 0:00:39]}  Kh8 {[%clk 0:00:42]} 31. Bh2 {[%clk 0:00:33]}  Ng4 {[%clk 0:00:39]} 32. Rh1 {[%clk 0:00:24]}  Rf7 {[%clk 0:00:24]} 33. Bg3 {[%clk 0:00:17]}  Kg8 {[%clk 0:00:22]} 34. Rh4 {[%clk 0:00:16]}  Nf6 {[%clk 0:00:16]} 35. Nhxf6+ {[%clk 0:00:15]}  Bxf6 {[%clk 0:00:16]} 36. Rg4+ {[%clk 0:00:16]}  Kf8 {[%clk 0:00:16]} 37. Bf2 {[%clk 0:00:15]}  Bd8 {[%clk 0:00:11]} 38. Be3 {[%clk 0:00:14]}  Ne7 {[%clk 0:00:07]} 39. Bh6+ {[%clk 0:00:12]}  Ke8 {[%clk 0:00:07]} 40. Ne3 {[%clk 0:00:11]}  Rh7 {[%clk 0:00:06]} 41. Bg5 {[%clk 0:00:10]}  Rg7 {[%clk 0:00:06]} 42. Bxe7 {[%clk 0:00:08]}  Rxg4+ {[%clk 0:00:05]} 43. Nxg4 {[%clk 0:00:08]}  Bxe7 {[%clk 0:00:06]} 44. Nxe5 {[%clk 0:00:08]}  Bf6 {[%clk 0:00:05]} 45. d4 {[%clk 0:00:07]}  c5 {[%clk 0:00:06]} 46. Nf3 {[%clk 0:00:05]}  cxd4 {[%clk 0:00:05]} 47. Kf2 {[%clk 0:00:05]}  Kd7 {[%clk 0:00:03]} 48. Ke2 {[%clk 0:00:06]}  Kc6 {[%clk 0:00:03]} 49. b4 {[%clk 0:00:05]}  a5 {[%clk 0:00:02]} 50. a3 {[%clk 0:00:05]}  axb4 {[%clk 0:00:02]} 51. axb4 {[%clk 0:00:05]}  b5 {[%clk 0:00:03]} 52. c5 {[%clk 0:00:05]}  Kd5 {[%clk 0:00:04]} 53. Kd3 {[%clk 0:00:05]}  Bg7 {[%clk 0:00:04]} 54. Ng5 {[%clk 0:00:05]}  Bh6 {[%clk 0:00:04]} 55. Ne4 {[%clk 0:00:04]}  Bf4 {[%clk 0:00:04]} 56. Nf6+ {[%clk 0:00:04]}  Ke6 {[%clk 0:00:04]} 57. Nh5 {[%clk 0:00:03]}  Be3 {[%clk 0:00:03]} 58. Ke4 {[%clk 0:00:03]}  Bd2 {[%clk 0:00:03]} 59. Ng3 {[%clk 0:00:02]}  Bxb4 {[%clk 0:00:03]} 60. Kxd4 {[%clk 0:00:02]}  Be1 {[%clk 0:00:03]} 61. Ne4 {[%clk 0:00:02]}  b4 {[%clk 0:00:03]} 62. Kc4 {[%clk 0:00:02]}  Ke5 {[%clk 0:00:04]} 63. Nd6 {[%clk 0:00:02]}  Ke6 {[%clk 0:00:04]} 64. Nb5 {[%clk 0:00:02]}  Kd7 {[%clk 0:00:05]} 65. Nd4 {[%clk 0:00:02]}  Bc3 {[%clk 0:00:04]} 66. Ne2 {[%clk 0:00:02]}  Bd2 {[%clk 0:00:05]} 67. Nd4 {[%clk 0:00:01]}  Kc7 {[%clk 0:00:05]} 68. Nb3 {[%clk 0:00:01]}  Bc3 {[%clk 0:00:05]} 0-1


[Site "https://www.chess.com"]

[Event "Titled Tuesday Blitz March 14 Early 2023"]
[White "Bruedigam, Martin"]
[Black "Martin, Lewis"]
[WhiteFideId "24608033"]
[BlackFideId "410551"]
[WhiteElo "2331"]
[BlackElo "2145"]
[Result "1-0"]
[Round "04"]
[TimeControl "180+2"]
[Date "2023.03.14"]
[WhiteClock "0:00:09"]
[BlackClock "0:00:10"]

1. d4 {[%clk 0:03:00]}  d5 {[%clk 0:03:00]} 2. c4 {[%clk 0:03:00]}  c6 {[%clk 0:03:00]} 3. Nf3 {[%clk 0:02:58]}  Nf6 {[%clk 0:03:00]} 4. Nc3 {[%clk 0:02:56]}  dxc4 {[%clk 0:03:00]} 5. a4 {[%clk 0:02:54]}  Bf5 {[%clk 0:03:00]} 6. Ne5 {[%clk 0:02:52]}  Nbd7 {[%clk 0:02:59]} 7. Nxc4 {[%clk 0:02:52]}  Nb6 {[%clk 0:02:57]} 8. Ne5 {[%clk 0:02:52]}  e6 {[%clk 0:02:57]} 9. g3 {[%clk 0:02:28]}  Bb4 {[%clk 0:02:55]} 10. Bg2 {[%clk 0:02:27]}  O-O {[%clk 0:02:52]} 11. O-O {[%clk 0:02:24]}  Nbd5 {[%clk 0:02:44]} 12. Qb3 {[%clk 0:02:18]}  a5 {[%clk 0:02:41]} 13. Bd2 {[%clk 0:02:07]}  Qe7 {[%clk 0:02:34]} 14. Rfe1 {[%clk 0:01:52]}  Nxc3 {[%clk 0:02:20]} 15. bxc3 {[%clk 0:01:51]}  Bd6 {[%clk 0:02:20]} 16. e4 {[%clk 0:01:37]}  Bg4 {[%clk 0:01:56]} 17. h3 {[%clk 0:01:14]}  Bh5 {[%clk 0:01:53]} 18. g4 {[%clk 0:01:14]}  Bxe5 {[%clk 0:01:49]} 19. dxe5 {[%clk 0:01:15]}  Nxg4 {[%clk 0:01:47]} 20. hxg4 {[%clk 0:01:16]}  Bxg4 {[%clk 0:01:48]} 21. Bf4 {[%clk 0:01:07]}  Rab8 {[%clk 0:01:42]} 22. Re3 {[%clk 0:01:04]}  Bh5 {[%clk 0:01:40]} 23. Qb6 {[%clk 0:01:00]}  Qd8 {[%clk 0:01:28]} 24. Rb1 {[%clk 0:00:58]}  h6 {[%clk 0:01:11]} 25. Ree1 {[%clk 0:00:55]}  Qd3 {[%clk 0:01:02]} 26. Qd4 {[%clk 0:00:28]}  Qc2 {[%clk 0:00:58]} 27. Rec1 {[%clk 0:00:25]}  Qe2 {[%clk 0:00:53]} 28. Qe3 {[%clk 0:00:25]}  Qa2 {[%clk 0:00:48]} 29. Ra1 {[%clk 0:00:18]}  Qc4 {[%clk 0:00:48]} 30. Bf1 {[%clk 0:00:17]}  Qb3 {[%clk 0:00:45]} 31. Rcb1 {[%clk 0:00:13]}  Qc2 {[%clk 0:00:43]} 32. Rc1 {[%clk 0:00:12]}  Qb3 {[%clk 0:00:42]} 33. Rcb1 {[%clk 0:00:12]}  Qc2 {[%clk 0:00:42]} 34. Qd3 {[%clk 0:00:13]}  Qxd3 {[%clk 0:00:38]} 35. Bxd3 {[%clk 0:00:14]}  Rfd8 {[%clk 0:00:37]} 36. Bf1 {[%clk 0:00:14]}  Bf3 {[%clk 0:00:27]} 37. Re1 {[%clk 0:00:12]}  g5 {[%clk 0:00:18]} 38. Bc1 {[%clk 0:00:11]}  Kg7 {[%clk 0:00:15]} 39. Rb1 {[%clk 0:00:11]}  b6 {[%clk 0:00:14]} 40. Ba3 {[%clk 0:00:10]}  c5 {[%clk 0:00:14]} 41. Bc1 {[%clk 0:00:10]}  Rb7 {[%clk 0:00:14]} 42. Re3 {[%clk 0:00:11]}  Bg4 {[%clk 0:00:14]} 43. f3 {[%clk 0:00:10]}  Bh5 {[%clk 0:00:14]} 44. Kf2 {[%clk 0:00:08]}  Rd1 {[%clk 0:00:13]} 45. Ra1 {[%clk 0:00:09]}  Rbd7 {[%clk 0:00:13]} 46. Be2 {[%clk 0:00:09]}  Rh1 {[%clk 0:00:12]} 47. Kg2 {[%clk 0:00:09]}  Re1 {[%clk 0:00:11]} 48. Kf2 {[%clk 0:00:08]}  Rh1 {[%clk 0:00:11]} 49. Kg2 {[%clk 0:00:09]}  Re1 {[%clk 0:00:11]} 50. Bf1 {[%clk 0:00:09]}  Rdd1 {[%clk 0:00:10]} 51. Rxe1 {[%clk 0:00:09]}  Rxe1 {[%clk 0:00:11]} 52. Bb2 {[%clk 0:00:08]}  Rxa1 {[%clk 0:00:10]} 53. Bxa1 {[%clk 0:00:09]}  g4 {[%clk 0:00:08]} 54. f4 {[%clk 0:00:09]}  Bg6 {[%clk 0:00:08]} 55. Bd3 {[%clk 0:00:08]}  f6 {[%clk 0:00:07]} 56. exf6+ {[%clk 0:00:07]}  Kxf6 {[%clk 0:00:07]} 57. c4+ {[%clk 0:00:06]}  Ke7 {[%clk 0:00:07]} 58. Be5 {[%clk 0:00:07]}  Kd7 {[%clk 0:00:07]} 59. Kg3 {[%clk 0:00:07]}  h5 {[%clk 0:00:08]} 60. Kh4 {[%clk 0:00:08]}  Bh7 {[%clk 0:00:07]} 61. f5 {[%clk 0:00:08]}  exf5 {[%clk 0:00:07]} 62. exf5 {[%clk 0:00:08]}  Ke7 {[%clk 0:00:07]} 63. Kxh5 {[%clk 0:00:09]}  g3 {[%clk 0:00:07]} 64. Bxg3 {[%clk 0:00:09]}  Kf7 {[%clk 0:00:07]} 65. Bc7 {[%clk 0:00:09]}  Kf6 {[%clk 0:00:08]} 66. Bxb6 {[%clk 0:00:10]}  Ke5 {[%clk 0:00:08]} 67. Bxc5 {[%clk 0:00:10]}  Bg8 {[%clk 0:00:09]} 68. Kg4 {[%clk 0:00:10]}  Bf7 {[%clk 0:00:10]} 69. Kg5 {[%clk 0:00:09]}  Be8 {[%clk 0:00:10]} 70. f6 {[%clk 0:00:10]}  Bxa4 {[%clk 0:00:10]} 71. f7 {[%clk 0:00:09]} 1-0


[Site "https://www.chess.com"]

[Event "Titled Tuesday Blitz March 14 Early 2023"]
[White "Cheng, Xiao"]
[Black "Kornyukov, Alexey"]
[WhiteFideId "2022915"]
[BlackFideId "4150457"]
[WhiteElo "2465"]
[BlackElo "2352"]
[Result "1/2-1/2"]
[Round "04"]
[TimeControl "180+2"]
[Date "2023.03.14"]
[WhiteClock "0:00:20"]
[BlackClock "0:00:13"]

1. e4 {[%clk 0:02:52]}  c5 {[%clk 0:02:58]} 2. Nf3 {[%clk 0:02:51]}  Nc6 {[%clk 0:02:57]} 3. d4 {[%clk 0:02:51]}  cxd4 {[%clk 0:02:57]} 4. Nxd4 {[%clk 0:02:52]}  e5 {[%clk 0:02:58]} 5. Nb5 {[%clk 0:02:51]}  a6 {[%clk 0:02:58]} 6. Nd6+ {[%clk 0:02:49]}  Bxd6 {[%clk 0:02:57]} 7. Qxd6 {[%clk 0:02:50]}  Qe7 {[%clk 0:02:57]} 8. Qxe7+ {[%clk 0:02:42]}  Ngxe7 {[%clk 0:02:57]} 9. c3 {[%clk 0:02:38]}  O-O {[%clk 0:02:50]} 10. Bc4 {[%clk 0:02:35]}  b5 {[%clk 0:02:46]} 11. Bb3 {[%clk 0:02:34]}  Bb7 {[%clk 0:02:44]} 12. O-O {[%clk 0:02:33]}  Rad8 {[%clk 0:02:42]} 13. a4 {[%clk 0:02:30]}  Na5 {[%clk 0:02:35]} 14. Bc2 {[%clk 0:02:29]}  Nc4 {[%clk 0:02:33]} 15. axb5 {[%clk 0:02:26]}  axb5 {[%clk 0:02:30]} 16. Na3 {[%clk 0:02:26]}  Nxa3 {[%clk 0:02:28]} 17. Rxa3 {[%clk 0:02:26]}  d5 {[%clk 0:02:27]} 18. Ra7 {[%clk 0:02:24]}  Rb8 {[%clk 0:02:15]} 19. exd5 {[%clk 0:02:24]}  Nxd5 {[%clk 0:02:13]} 20. Be4 {[%clk 0:02:23]}  Rfd8 {[%clk 0:02:06]} 21. h3 {[%clk 0:02:22]}  Bc6 {[%clk 0:02:00]} 22. Ra6 {[%clk 0:02:16]}  Bb7 {[%clk 0:01:57]} 23. Ra5 {[%clk 0:02:15]}  Nxc3 {[%clk 0:01:50]} 24. Bxb7 {[%clk 0:01:59]}  Ne2+ {[%clk 0:01:48]} 25. Kh2 {[%clk 0:02:00]}  Rxb7 {[%clk 0:01:47]} 26. Be3 {[%clk 0:01:54]}  Nd4 {[%clk 0:01:44]} 27. Rd1 {[%clk 0:01:49]}  f5 {[%clk 0:01:40]} 28. Bxd4 {[%clk 0:01:29]}  exd4 {[%clk 0:01:37]} 29. Rd3 {[%clk 0:01:28]}  Kf7 {[%clk 0:01:34]} 30. Ra6 {[%clk 0:01:27]}  g6 {[%clk 0:01:27]} 31. Kg3 {[%clk 0:01:26]}  Rc7 {[%clk 0:01:26]} 32. Rb6 {[%clk 0:01:25]}  Rc5 {[%clk 0:01:25]} 33. Kf4 {[%clk 0:01:24]}  h6 {[%clk 0:01:21]} 34. g4 {[%clk 0:01:12]}  fxg4 {[%clk 0:01:18]} 35. hxg4 {[%clk 0:01:12]}  Rc2 {[%clk 0:01:15]} 36. Rxb5 {[%clk 0:01:11]}  Rxf2+ {[%clk 0:01:14]} 37. Kg3 {[%clk 0:01:12]}  Rf6 {[%clk 0:01:11]} 38. Rb7+ {[%clk 0:01:09]}  Kg8 {[%clk 0:01:03]} 39. b4 {[%clk 0:01:07]}  h5 {[%clk 0:01:01]} 40. gxh5 {[%clk 0:01:06]}  gxh5 {[%clk 0:01:01]} 41. b5 {[%clk 0:01:05]}  Re6 {[%clk 0:00:47]} 42. b6 {[%clk 0:01:00]}  Re5 {[%clk 0:00:32]} 43. Rc7 {[%clk 0:00:56]}  Rb5 {[%clk 0:00:32]} 44. b7 {[%clk 0:00:55]}  Kf8 {[%clk 0:00:27]} 45. Kf4 {[%clk 0:00:46]}  Ke8 {[%clk 0:00:23]} 46. Rg3 {[%clk 0:00:41]}  Kf8 {[%clk 0:00:17]} 47. Rgg7 {[%clk 0:00:38]}  d3 {[%clk 0:00:16]} 48. Rh7 {[%clk 0:00:38]}  Kg8 {[%clk 0:00:15]} 49. Rcg7+ {[%clk 0:00:38]}  Kf8 {[%clk 0:00:15]} 50. Rc7 {[%clk 0:00:31]}  Kg8 {[%clk 0:00:15]} 51. Rhg7+ {[%clk 0:00:31]}  Kf8 {[%clk 0:00:13]} 52. Rcf7+ {[%clk 0:00:26]}  Ke8 {[%clk 0:00:13]} 53. Rc7 {[%clk 0:00:20]}  Kf8 {[%clk 0:00:13]} 1/2-1/2


[Site "https://www.chess.com"]